[Event "Late-Titled-Tuesday-Blitz-May-07-2024"]
[Site "Chess.com"]
[Date "2024.05.07"]
[Round "2"]
[White "karinachess1"]
[Black "Dedic8"]
[Result "0-1"]
[WhiteElo "2586"]
[BlackElo "2869"]
[TimeControl "180+1"]
[EndTime "14:19:17 PDT"]
[Termination "Dedic8 won by resignation"]

1. d4 {[%clk 0:03:00.9]} 1... Nf6 {[%clk 0:02:59.9]} 2. c4 {[%clk 0:03:01.1]}
2... e6 {[%clk 0:03:00.5]} 3. Nc3 {[%clk 0:03:01.4]} 3... d5 {[%clk 0:03:01.3]}
4. cxd5 {[%clk 0:03:01.3]} 4... exd5 {[%clk 0:03:02.2]} 5. Bg5 {[%clk
0:03:01.4]} 5... Be7 {[%clk 0:03:02.6]} 6. e3 {[%clk 0:03:02]} 6... h6 {[%clk
0:03:03.2]} 7. Bh4 {[%clk 0:03:02.2]} 7... c6 {[%clk 0:03:03.7]} 8. Bd3 {[%clk
0:03:02.6]} 8... O-O {[%clk 0:03:03.7]} 9. Nf3 {[%clk 0:03:03.1]} 9... Ne4
{[%clk 0:03:03.4]} 10. Bxe7 {[%clk 0:02:59.8]} 10... Qxe7 {[%clk 0:03:03.5]} 11.
O-O {[%clk 0:02:59.7]} 11... Re8 {[%clk 0:03:03.4]} 12. Qc2 {[%clk 0:02:58.6]}
12... Bf5 {[%clk 0:02:59.9]} 13. a3 {[%clk 0:02:59]} 13... Nd7 {[%clk
0:02:59.9]} 14. Na4 {[%clk 0:02:56.3]} 14... a5 {[%clk 0:02:55.3]} 15. Rab1
{[%clk 0:02:53.4]} 15... Qd6 {[%clk 0:02:48.1]} 16. b4 {[%clk 0:02:48.2]} 16...
axb4 {[%clk 0:02:45.4]} 17. axb4 {[%clk 0:02:49.1]} 17... Bg4 {[%clk 0:02:28.1]}
18. Be2 {[%clk 0:02:18.1]} 18... Ng5 {[%clk 0:01:48.2]} 19. Nxg5 {[%clk
0:02:08.2]} 19... Bxe2 {[%clk 0:01:48.5]} 20. Qxe2 {[%clk 0:02:09.1]} 20... Rxa4
{[%clk 0:01:05.7]} 21. Nf3 {[%clk 0:02:07.4]} 21... Rxb4 {[%clk 0:01:01.2]} 22.
Ra1 {[%clk 0:02:01]} 22... Nb6 {[%clk 0:00:52.1]} 23. Ne5 {[%clk 0:01:57.4]}
23... Nc4 {[%clk 0:00:51.7]} 24. Nd3 {[%clk 0:01:54.1]} 24... Rb5 {[%clk
0:00:47.1]} 25. Ra7 {[%clk 0:01:49.9]} 25... Qf6 {[%clk 0:00:43.4]} 26. Qg4
{[%clk 0:01:38.6]} 26... g6 {[%clk 0:00:29.4]} 27. Nc5 {[%clk 0:01:30.9]} 27...
Nd6 {[%clk 0:00:24.8]} 28. Qd7 {[%clk 0:01:08.7]} 28... Qe7 {[%clk 0:00:22.5]}
29. Qxe7 {[%clk 0:01:05.5]} 29... Rxe7 {[%clk 0:00:22.9]} 30. h4 {[%clk
0:01:03.4]} 30... Kg7 {[%clk 0:00:22.6]} 31. Rfa1 {[%clk 0:00:58.4]} 31... h5
{[%clk 0:00:22.5]} 32. g3 {[%clk 0:00:53.5]} 32... Rb2 {[%clk 0:00:20.4]} 33.
R1a2 {[%clk 0:00:41.8]} 33... Rxa2 {[%clk 0:00:18.6]} 34. Rxa2 {[%clk
0:00:42.7]} 34... b6 {[%clk 0:00:19]} 35. Nd3 {[%clk 0:00:42.9]} 35... Nc4
{[%clk 0:00:17.3]} 36. Nb4 {[%clk 0:00:39.9]} 36... Rc7 {[%clk 0:00:15.4]} 37.
Ra6 {[%clk 0:00:37.3]} 37... Kf6 {[%clk 0:00:14.3]} 38. Kg2 {[%clk 0:00:32.4]}
38... Ke6 {[%clk 0:00:14.6]} 39. Kf3 {[%clk 0:00:32.7]} 39... Kd6 {[%clk
0:00:14.6]} 40. Kf4 {[%clk 0:00:29.9]} 40... c5 {[%clk 0:00:09.9]} 41. dxc5+
{[%clk 0:00:24.5]} 41... Kxc5 {[%clk 0:00:10.8]} 42. Nd3+ {[%clk 0:00:22.4]}
42... Kb5 {[%clk 0:00:11.1]} 43. Ra8 {[%clk 0:00:20.9]} 43... Nd2 {[%clk
0:00:08.5]} 44. Rd8 {[%clk 0:00:19]} 44... Kc4 {[%clk 0:00:08]} 45. Ne5+ {[%clk
0:00:16.2]} 45... Kc5 {[%clk 0:00:08.3]} 46. Nd3+ {[%clk 0:00:16.6]} 46... Kc4
{[%clk 0:00:08.3]} 47. Ne5+ {[%clk 0:00:17]} 47... Kc3 {[%clk 0:00:08.9]} 48.
Rxd5 {[%clk 0:00:16.5]} 48... Rb7 {[%clk 0:00:07.8]} 49. Rb5 {[%clk 0:00:15.5]}
49... Nc4 {[%clk 0:00:07.8]} 50. Nf3 {[%clk 0:00:06]} 50... Rc7 {[%clk
0:00:07.5]} 51. Nd4 {[%clk 0:00:05.4]} 51... Rc5 {[%clk 0:00:07.5]} 52. Rb1
{[%clk 0:00:04.8]} 52... Kd3 {[%clk 0:00:05.3]} 53. Rb3+ {[%clk 0:00:04.3]}
53... Kd2 {[%clk 0:00:05]} 54. f3 {[%clk 0:00:03.5]} 54... Kd1 {[%clk 0:00:03]}
55. g4 {[%clk 0:00:03.9]} 55... hxg4 {[%clk 0:00:03.2]} 56. fxg4 {[%clk
0:00:04.8]} 56... Ke1 {[%clk 0:00:03.7]} 57. g5 {[%clk 0:00:05.2]} 57... Re5
{[%clk 0:00:03.8]} 58. Rb4 {[%clk 0:00:04.2]} 58... Rc5 {[%clk 0:00:03.9]} 59.
Rb3 {[%clk 0:00:04.4]} 59... Kd1 {[%clk 0:00:04]} 60. Rc3 {[%clk 0:00:03.8]}
60... Nd6 {[%clk 0:00:03.8]} 61. Rxc5 {[%clk 0:00:03.4]} 61... bxc5 {[%clk
0:00:04.7]} 62. Nb3 {[%clk 0:00:02.8]} 62... c4 {[%clk 0:00:05.1]} 63. Nd4
{[%clk 0:00:03.5]} 63... c3 {[%clk 0:00:04.7]} 64. Ke5 {[%clk 0:00:04.1]} 64...
Nc4+ {[%clk 0:00:03.6]} 65. Kf6 {[%clk 0:00:04]} 65... Nxe3 {[%clk 0:00:03.9]}
66. Kxf7 {[%clk 0:00:04.2]} 66... Nf5 {[%clk 0:00:04.2]} 67. Nb3 {[%clk
0:00:04.5]} 67... Nxh4 {[%clk 0:00:04.6]} 68. Kf6 {[%clk 0:00:04.4]} 68... Kc2
{[%clk 0:00:05]} 69. Nd4+ {[%clk 0:00:04.3]} 69... Kd3 {[%clk 0:00:05.6]} 70.
Nb3 {[%clk 0:00:04.5]} 70... c2 {[%clk 0:00:06.1]} 71. Ke5 {[%clk 0:00:04.1]}
71... Kc3 {[%clk 0:00:06.6]} 72. Nc1 {[%clk 0:00:04]} 72... Kd2 {[%clk
0:00:07.1]} 73. Nb3+ {[%clk 0:00:04.3]} 73... Kd1 {[%clk 0:00:07.8]} 74. Kf4
{[%clk 0:00:04.7]} 74... c1=Q+ {[%clk 0:00:08.2]} 75. Nxc1 {[%clk 0:00:04.6]}
75... Kxc1 {[%clk 0:00:09.1]} 76. Kg4 {[%clk 0:00:05.2]} 76... Nf5 {[%clk
0:00:09.7]} 77. Kf4 {[%clk 0:00:06.1]} 77... Kd2 {[%clk 0:00:10]} 78. Ke4 {[%clk
0:00:06.2]} 78... Ke2 {[%clk 0:00:10.2]} 79. Ke5 {[%clk 0:00:06.8]} 79... Kf3
{[%clk 0:00:10.2]} 80. Kf6 {[%clk 0:00:07.7]} 80... Nh4 {[%clk 0:00:10.7]} 0-1

[Event "Late-Titled-Tuesday-Blitz-May-07-2024"]
[Site "Chess.com"]
[Date "2024.05.07"]
[Round "2"]
[White "KorolDimitriy75"]
[Black "banane_verte"]
[Result "1-0"]
[WhiteElo "2396"]
[BlackElo "2565"]
[TimeControl "180+1"]
[EndTime "14:19:30 PDT"]
[Termination "KorolDimitriy75 won by checkmate"]

1. d4 {[%clk 0:03:00.6]} 1... e6 {[%clk 0:03:00.9]} 2. c4 {[%clk 0:03:00.4]}
2... d5 {[%clk 0:02:20.4]} 3. Nc3 {[%clk 0:03:00.3]} 3... Nf6 {[%clk 0:01:27.6]}
4. Bg5 {[%clk 0:02:59.3]} 4... Be7 {[%clk 0:01:26.8]} 5. cxd5 {[%clk 0:02:59.3]}
5... exd5 {[%clk 0:01:25.6]} 6. e3 {[%clk 0:02:59.3]} 6... h6 {[%clk 0:01:25]}
7. Bh4 {[%clk 0:02:59.4]} 7... O-O {[%clk 0:01:24.3]} 8. Bd3 {[%clk 0:02:59.4]}
8... c5 {[%clk 0:01:21.5]} 9. Nge2 {[%clk 0:02:52.2]} 9... Nc6 {[%clk
0:01:19.5]} 10. dxc5 {[%clk 0:02:37.7]} 10... Bxc5 {[%clk 0:01:11.8]} 11. O-O
{[%clk 0:02:28.1]} 11... d4 {[%clk 0:01:11.7]} 12. Ne4 {[%clk 0:02:05.6]} 12...
Be7 {[%clk 0:01:04.9]} 13. Nxf6+ {[%clk 0:01:33.9]} 13... Bxf6 {[%clk
0:01:05.8]} 14. Bxf6 {[%clk 0:01:33]} 14... Qxf6 {[%clk 0:01:06.7]} 15. Nxd4
{[%clk 0:01:25.1]} 15... Nxd4 {[%clk 0:01:07.1]} 16. exd4 {[%clk 0:01:26]} 16...
Bf5 {[%clk 0:01:07.7]} 17. Qf3 {[%clk 0:01:16.9]} 17... Bxd3 {[%clk 0:01:06.7]}
18. Qxd3 {[%clk 0:01:17.8]} 18... Rfd8 {[%clk 0:01:06.3]} 19. Rad1 {[%clk
0:01:15.5]} 19... Rd7 {[%clk 0:01:06.3]} 20. Rd2 {[%clk 0:00:30.1]} 20... Rad8
{[%clk 0:01:06.3]} 21. Rfd1 {[%clk 0:00:21.5]} 21... g6 {[%clk 0:01:01.1]} 22.
Qe3 {[%clk 0:00:21]} 22... Kg7 {[%clk 0:01:00.8]} 23. g3 {[%clk 0:00:19.7]}
23... Rd5 {[%clk 0:01:00.2]} 24. Kg2 {[%clk 0:00:19.2]} 24... Qc6 {[%clk
0:01:00.1]} 25. Qf3 {[%clk 0:00:18.9]} 25... Qc4 {[%clk 0:00:54.7]} 26. b3
{[%clk 0:00:18.4]} 26... Qb4 {[%clk 0:00:53.5]} 27. Qe3 {[%clk 0:00:17.1]} 27...
Qd6 {[%clk 0:00:51.1]} 28. Rd3 {[%clk 0:00:16.5]} 28... Qc6 {[%clk 0:00:50.9]}
29. Qf3 {[%clk 0:00:16.8]} 29... Qd7 {[%clk 0:00:51.5]} 30. Qe3 {[%clk
0:00:15.8]} 30... a6 {[%clk 0:00:52.2]} 31. R1d2 {[%clk 0:00:15.8]} 31... h5
{[%clk 0:00:52.7]} 32. h4 {[%clk 0:00:16]} 32... Qc6 {[%clk 0:00:53.4]} 33. Qf3
{[%clk 0:00:16.2]} 33... Qd6 {[%clk 0:00:54.1]} 34. Qe3 {[%clk 0:00:16.2]} 34...
a5 {[%clk 0:00:53.5]} 35. Qe4 {[%clk 0:00:15.8]} 35... a4 {[%clk 0:00:52.6]} 36.
bxa4 {[%clk 0:00:15]} 36... Qd7 {[%clk 0:00:53.3]} 37. Qe3 {[%clk 0:00:14.2]}
37... Qxa4 {[%clk 0:00:53.1]} 38. Qe4 {[%clk 0:00:13.2]} 38... b5 {[%clk
0:00:52.4]} 39. a3 {[%clk 0:00:12.2]} 39... Qa8 {[%clk 0:00:52.9]} 40. Qf3
{[%clk 0:00:11.9]} 40... Qb7 {[%clk 0:00:51.1]} 41. Rd1 {[%clk 0:00:11.7]} 41...
Qd7 {[%clk 0:00:51.5]} 42. Qe3 {[%clk 0:00:10.9]} 42... Qd6 {[%clk 0:00:52.2]}
43. Qf3 {[%clk 0:00:10.7]} 43... Qc6 {[%clk 0:00:52.3]} 44. R1d2 {[%clk
0:00:10.4]} 44... Kg8 {[%clk 0:00:52.8]} 45. Rd1 {[%clk 0:00:10.3]} 45... Qc2
{[%clk 0:00:53.3]} 46. R1d2 {[%clk 0:00:10.4]} 46... Qb1 {[%clk 0:00:53.5]} 47.
Rd1 {[%clk 0:00:10.7]} 47... Qb2 {[%clk 0:00:53.9]} 48. R1d2 {[%clk 0:00:11]}
48... Qc1 {[%clk 0:00:54.6]} 49. Rd1 {[%clk 0:00:11.1]} 49... Qc2 {[%clk
0:00:55.4]} 50. R1d2 {[%clk 0:00:11.4]} 50... Qa4 {[%clk 0:00:56.2]} 51. Qe4
{[%clk 0:00:10.6]} 51... Qa8 {[%clk 0:00:55.6]} 52. Qf3 {[%clk 0:00:10.6]} 52...
Qa7 {[%clk 0:00:53.6]} 53. Qe3 {[%clk 0:00:10.1]} 53... Ra8 {[%clk 0:00:53.6]}
54. Qe4 {[%clk 0:00:09.7]} 54... Qd7 {[%clk 0:00:53.7]} 55. Qe3 {[%clk
0:00:08.9]} 55... Ra4 {[%clk 0:00:53.7]} 56. Qe4 {[%clk 0:00:08.6]} 56... Qd6
{[%clk 0:00:53.6]} 57. Qe3 {[%clk 0:00:08.3]} 57... Rf5 {[%clk 0:00:51.4]} 58.
Qe4 {[%clk 0:00:08]} 58... Rxa3 {[%clk 0:00:49.8]} 59. Rxa3 {[%clk 0:00:07.4]}
59... Qxa3 {[%clk 0:00:50.7]} 60. d5 {[%clk 0:00:07.7]} 60... Qd6 {[%clk
0:00:50.4]} 61. Qe8+ {[%clk 0:00:07.6]} 61... Kg7 {[%clk 0:00:50.5]} 62. Qxb5
{[%clk 0:00:08.3]} 62... Qf6 {[%clk 0:00:48.5]} 63. Qd3 {[%clk 0:00:08.1]} 63...
Qd6 {[%clk 0:00:46.7]} 64. Qd4+ {[%clk 0:00:08.2]} 64... Kg8 {[%clk 0:00:46.4]}
65. Qe4 {[%clk 0:00:08.5]} 65... Re5 {[%clk 0:00:46.1]} 66. Qd4 {[%clk
0:00:08.8]} 66... Re1 {[%clk 0:00:46]} 67. Qd3 {[%clk 0:00:08.6]} 67... Rc1
{[%clk 0:00:43.8]} 68. Qe3 {[%clk 0:00:08.4]} 68... Qa6 {[%clk 0:00:43]} 69. d6
{[%clk 0:00:07.6]} 69... Qf1+ {[%clk 0:00:42.6]} 70. Kf3 {[%clk 0:00:07.9]}
70... Qh1+ {[%clk 0:00:41.7]} 71. Kf4 {[%clk 0:00:08.2]} 71... Re1 {[%clk
0:00:32.8]} 72. Qd4 {[%clk 0:00:06.8]} 72... Qc6 {[%clk 0:00:24.9]} 73. d7
{[%clk 0:00:06.1]} 73... Qc7+ {[%clk 0:00:25.5]} 74. Kg5 {[%clk 0:00:06]} 74...
Re5+ {[%clk 0:00:15.3]} 75. Kh6 {[%clk 0:00:05.6]} 75... Qd8 {[%clk 0:00:06.2]}
76. Qxe5 {[%clk 0:00:05.6]} 76... Qf8+ {[%clk 0:00:06]} 77. Kg5 {[%clk
0:00:05.8]} 77... Qd8+ {[%clk 0:00:04.9]} 78. Qf6 {[%clk 0:00:06]} 78... Qa5+
{[%clk 0:00:03.5]} 79. Kh6 {[%clk 0:00:03.9]} 79... Qxd2+ {[%clk 0:00:03.6]} 80.
Qf4 {[%clk 0:00:03.5]} 80... Qxd7 {[%clk 0:00:03.8]} 81. Qf6 {[%clk 0:00:03.6]}
81... Qe8 {[%clk 0:00:04]} 82. Qg7# {[%clk 0:00:02.8]} 1-0

[Event "Late-Titled-Tuesday-Blitz-May-07-2024"]
[Site "Chess.com"]
[Date "2024.05.07"]
[Round "2"]
[White "bardiya_Daneshvar"]
[Black "Ykow"]
[Result "1/2-1/2"]
[WhiteElo "3026"]
[BlackElo "2551"]
[TimeControl "180+1"]
[EndTime "14:19:39 PDT"]
[Termination "Game drawn - insufficient material"]

1. f3 {[%clk 0:02:57.9]} 1... e5 {[%clk 0:02:55.9]} 2. e3 {[%clk 0:02:56.8]}
2... d5 {[%clk 0:02:55.6]} 3. b3 {[%clk 0:02:57.4]} 3... Nc6 {[%clk 0:02:54]} 4.
Bb2 {[%clk 0:02:58.3]} 4... Nf6 {[%clk 0:02:54]} 5. Bb5 {[%clk 0:02:58.8]} 5...
Bd6 {[%clk 0:02:54.2]} 6. Ne2 {[%clk 0:02:58.7]} 6... Bd7 {[%clk 0:02:53.3]} 7.
O-O {[%clk 0:02:57.9]} 7... O-O {[%clk 0:02:53.2]} 8. Nbc3 {[%clk 0:02:56.4]}
8... Re8 {[%clk 0:02:51.8]} 9. e4 {[%clk 0:02:55.1]} 9... d4 {[%clk 0:02:51.8]}
10. Nb1 {[%clk 0:02:55.2]} 10... a6 {[%clk 0:02:43.2]} 11. Bxc6 {[%clk
0:02:55.2]} 11... Bxc6 {[%clk 0:02:44.1]} 12. d3 {[%clk 0:02:56.1]} 12... a5
{[%clk 0:02:44.3]} 13. a4 {[%clk 0:02:54.3]} 13... Nh5 {[%clk 0:02:43.1]} 14.
Nd2 {[%clk 0:02:53.4]} 14... Be7 {[%clk 0:02:36.1]} 15. Nc4 {[%clk 0:02:50.7]}
15... Bg5 {[%clk 0:02:36.1]} 16. Bc1 {[%clk 0:02:48.7]} 16... b6 {[%clk
0:02:35.7]} 17. f4 {[%clk 0:02:48.1]} 17... exf4 {[%clk 0:02:35.5]} 18. Nxf4
{[%clk 0:02:48.5]} 18... Nxf4 {[%clk 0:02:28.7]} 19. Bxf4 {[%clk 0:02:48.1]}
19... Bxf4 {[%clk 0:02:29.6]} 20. Rxf4 {[%clk 0:02:48.7]} 20... Bd7 {[%clk
0:02:28.5]} 21. Qh5 {[%clk 0:02:46.9]} 21... Be6 {[%clk 0:02:28.5]} 22. Raf1
{[%clk 0:02:46.1]} 22... f6 {[%clk 0:02:24.5]} 23. Nd2 {[%clk 0:02:45.2]} 23...
Qd6 {[%clk 0:02:22.6]} 24. Rh4 {[%clk 0:02:44.5]} 24... h6 {[%clk 0:02:21.2]}
25. Nf3 {[%clk 0:02:44.3]} 25... Qc5 {[%clk 0:02:14.9]} 26. Qxc5 {[%clk
0:02:42.9]} 26... bxc5 {[%clk 0:02:14.9]} 27. Nd2 {[%clk 0:02:36.3]} 27... Bf7
{[%clk 0:02:11.5]} 28. Rf5 {[%clk 0:02:35.4]} 28... Re5 {[%clk 0:02:11.6]} 29.
Rhf4 {[%clk 0:02:33.5]} 29... Be6 {[%clk 0:02:08.9]} 30. Rxe5 {[%clk 0:02:32.6]}
30... fxe5 {[%clk 0:02:09.8]} 31. Rf2 {[%clk 0:02:32]} 31... Re8 {[%clk
0:02:01.2]} 32. h3 {[%clk 0:02:31.2]} 32... g5 {[%clk 0:01:59.1]} 33. Nf3 {[%clk
0:02:27.2]} 33... Kg7 {[%clk 0:01:47.4]} 34. Nxe5 {[%clk 0:02:21.7]} 34... Bxb3
{[%clk 0:01:47.4]} 35. cxb3 {[%clk 0:02:19.5]} 35... Rxe5 {[%clk 0:01:47.2]} 36.
Kf1 {[%clk 0:01:39.8]} 36... Kg6 {[%clk 0:01:43.7]} 37. Rf8 {[%clk 0:01:36.3]}
37... Re6 {[%clk 0:01:39.8]} 38. Rg8+ {[%clk 0:01:27.8]} 38... Kh5 {[%clk
0:01:24.6]} 39. Rb8 {[%clk 0:01:22.7]} 39... Kh4 {[%clk 0:01:05.4]} 40. Kg1
{[%clk 0:00:46.4]} 40... Kg3 {[%clk 0:00:53.2]} 41. Rf8 {[%clk 0:00:45.6]} 41...
Rb6 {[%clk 0:00:44.3]} 42. Rf3+ {[%clk 0:00:44.7]} 42... Kh4 {[%clk 0:00:44.3]}
43. e5 {[%clk 0:00:45.6]} 43... Rxb3 {[%clk 0:00:37.9]} 44. e6 {[%clk
0:00:45.1]} 44... Rb8 {[%clk 0:00:20.8]} 45. Rf5 {[%clk 0:00:30.3]} 45... Re8
{[%clk 0:00:17.1]} 46. Rf6 {[%clk 0:00:28.9]} 46... g4 {[%clk 0:00:12.5]} 47.
Rxh6+ {[%clk 0:00:24.4]} 47... Kg5 {[%clk 0:00:12.3]} 48. Rh7 {[%clk 0:00:24.8]}
48... Rxe6 {[%clk 0:00:10.3]} 49. Rxc7 {[%clk 0:00:24.7]} 49... g3 {[%clk
0:00:10.6]} 50. Rxc5+ {[%clk 0:00:23.4]} 50... Kf4 {[%clk 0:00:11]} 51. Kf1
{[%clk 0:00:22.7]} 51... Ke3 {[%clk 0:00:11.2]} 52. Rg5 {[%clk 0:00:21.7]} 52...
Kxd3 {[%clk 0:00:07.7]} 53. Rxg3+ {[%clk 0:00:22.3]} 53... Kc2 {[%clk
0:00:08.3]} 54. Rg5 {[%clk 0:00:19.8]} 54... d3 {[%clk 0:00:08.3]} 55. Rc5+
{[%clk 0:00:19.8]} 55... Kd1 {[%clk 0:00:08.1]} 56. Rxa5 {[%clk 0:00:19.2]}
56... Rf6+ {[%clk 0:00:08.1]} 57. Kg1 {[%clk 0:00:19.3]} 57... d2 {[%clk
0:00:09]} 58. Rc5 {[%clk 0:00:10]} 58... Ke2 {[%clk 0:00:08.8]} 59. Re5+ {[%clk
0:00:10]} 59... Kd3 {[%clk 0:00:08.8]} 60. Rd5+ {[%clk 0:00:10.4]} 60... Ke3
{[%clk 0:00:09.3]} 61. Rd8 {[%clk 0:00:06.3]} 61... Ra6 {[%clk 0:00:09]} 62. Kf1
{[%clk 0:00:04.2]} 62... Rxa4 {[%clk 0:00:07.4]} 63. Re8+ {[%clk 0:00:04]} 63...
Kd3 {[%clk 0:00:07.8]} 64. Rd8+ {[%clk 0:00:04.5]} 64... Kc2 {[%clk 0:00:08.3]}
65. Rc8+ {[%clk 0:00:03.7]} 65... Kd1 {[%clk 0:00:08.6]} 66. Kf2 {[%clk
0:00:03]} 66... Rf4+ {[%clk 0:00:07.2]} 67. Ke3 {[%clk 0:00:03.1]} 67... Rf7
{[%clk 0:00:08.1]} 68. Rd8 {[%clk 0:00:02.6]} 68... Ke1 {[%clk 0:00:08.4]} 69.
g4 {[%clk 0:00:02]} 69... d1=Q {[%clk 0:00:06.5]} 70. Rxd1+ {[%clk 0:00:02.9]}
70... Kxd1 {[%clk 0:00:07.4]} 71. h4 {[%clk 0:00:03.8]} 71... Rh7 {[%clk
0:00:06.6]} 72. h5 {[%clk 0:00:04.1]} 72... Kc2 {[%clk 0:00:06.8]} 73. Ke4
{[%clk 0:00:03.4]} 73... Kc3 {[%clk 0:00:06.4]} 74. Kf5 {[%clk 0:00:03.7]} 74...
Kd4 {[%clk 0:00:07.3]} 75. Kg6 {[%clk 0:00:04.3]} 75... Rh8 {[%clk 0:00:07.6]}
76. h6 {[%clk 0:00:03.6]} 76... Ke5 {[%clk 0:00:07.9]} 77. Kg7 {[%clk
0:00:02.1]} 77... Ra8 {[%clk 0:00:08]} 78. h7 {[%clk 0:00:03]} 78... Kf4 {[%clk
0:00:08.4]} 79. h8=Q {[%clk 0:00:02.8]} 79... Rxh8 {[%clk 0:00:08.1]} 80. Kxh8
{[%clk 0:00:03.7]} 80... Kxg4 {[%clk 0:00:08.3]} 1/2-1/2